[Event "*** Titled Tuesday Blitz"]
[Site "Chess.com"]
[Date "2019.07.02"]
[Round "5"]
[White "maximnovik"]
[Black "BlueWizzard"]
[Result "1/2-1/2"]
[WhiteElo "2464"]
[BlackElo "2703"]
[TimeControl "180+2"]
[EndTime "14:08:48 PDT"]
[Termination "Game drawn - insufficient material"]

1. c4 {[%clk 0:02:57.7]} 1... Nf6 {[%clk 0:03:00.9]} 2. Nc3 {[%clk 0:02:58.1]}
2... g6 {[%clk 0:03:02.4]} 3. d4 {[%clk 0:02:58.8]} 3... Bg7 {[%clk 0:03:02.9]}
4. e4 {[%clk 0:02:59.7]} 4... d6 {[%clk 0:03:04]} 5. Nf3 {[%clk 0:03:00.9]} 5...
Nc6 {[%clk 0:03:04.2]} 6. Be2 {[%clk 0:03:01.4]} 6... Nd7 {[%clk 0:03:03.9]} 7.
Be3 {[%clk 0:03:02]} 7... e5 {[%clk 0:03:05.1]} 8. d5 {[%clk 0:03:02.9]} 8...
Ne7 {[%clk 0:03:05.6]} 9. Nd2 {[%clk 0:03:03.9]} 9... f5 {[%clk 0:03:05.8]} 10.
f3 {[%clk 0:03:04.8]} 10... Nf6 {[%clk 0:03:05.7]} 11. O-O {[%clk 0:02:59.6]}
11... O-O {[%clk 0:03:03.2]} 12. c5 {[%clk 0:03:00.2]} 12... a6 {[%clk
0:03:03.8]} 13. Nc4 {[%clk 0:03:00.8]} 13... Ne8 {[%clk 0:03:00.3]} 14. cxd6
{[%clk 0:02:58.6]} 14... Nxd6 {[%clk 0:03:00.8]} 15. Nxd6 {[%clk 0:02:47.7]}
15... Qxd6 {[%clk 0:03:01.2]} 16. Rc1 {[%clk 0:02:42.9]} 16... Bd7 {[%clk
0:03:02.2]} 17. Qb3 {[%clk 0:02:41.3]} 17... b6 {[%clk 0:03:02.8]} 18. Rc2
{[%clk 0:02:27.7]} 18... Kh8 {[%clk 0:02:58.5]} 19. Rfc1 {[%clk 0:02:27.3]}
19... b5 {[%clk 0:02:54]} 20. Nd1 {[%clk 0:02:26.9]} 20... c6 {[%clk 0:02:53.8]}
21. Bc5 {[%clk 0:01:30.6]} 21... Qf6 {[%clk 0:02:54]} 22. dxc6 {[%clk
0:01:00.4]} 22... Nxc6 {[%clk 0:02:54]} 23. Bxf8 {[%clk 0:01:00.7]} 23... Rxf8
{[%clk 0:02:55.9]} 24. Rd2 {[%clk 0:00:54.6]} 24... Nd4 {[%clk 0:02:37.7]} 25.
Qe3 {[%clk 0:00:54.9]} 25... Be6 {[%clk 0:02:29]} 26. Nc3 {[%clk 0:00:41.1]}
26... Qh4 {[%clk 0:02:25.1]} 27. g3 {[%clk 0:00:34.5]} 27... f4 {[%clk
0:02:18.6]} 28. Qf2 {[%clk 0:00:25.8]} 28... fxg3 {[%clk 0:02:15.2]} 29. hxg3
{[%clk 0:00:27.1]} 29... Qh3 {[%clk 0:02:06.3]} 30. Rcd1 {[%clk 0:00:21.3]}
30... Bh6 {[%clk 0:01:49.7]} 31. Rd3 {[%clk 0:00:12.9]} 31... Bg5 {[%clk
0:01:38.6]} 32. Bf1 {[%clk 0:00:13.6]} 32... Qh6 {[%clk 0:01:35.1]} 33. Nd5
{[%clk 0:00:12.4]} 33... Qg7 {[%clk 0:01:24.9]} 34. f4 {[%clk 0:00:13.2]} 34...
Bd8 {[%clk 0:01:18.3]} 35. Rxd4 {[%clk 0:00:09.2]} 35... exd4 {[%clk 0:01:18.5]}
36. Qxd4 {[%clk 0:00:10.4]} 36... Re8 {[%clk 0:01:19.2]} 37. Qxg7+ {[%clk
0:00:10.4]} 37... Kxg7 {[%clk 0:01:21.1]} 38. Kg2 {[%clk 0:00:11.8]} 38... Ba5
{[%clk 0:01:20.9]} 39. Be2 {[%clk 0:00:10.6]} 39... Rc8 {[%clk 0:01:21.6]} 40.
Bf3 {[%clk 0:00:11]} 40... Rc2+ {[%clk 0:01:22.1]} 41. Kf1 {[%clk 0:00:12]}
41... Bh3+ {[%clk 0:01:20]} 42. Kg1 {[%clk 0:00:11.5]} 42... Rxb2 {[%clk
0:01:21.9]} 43. e5 {[%clk 0:00:12.5]} 43... Rxa2 {[%clk 0:01:18.9]} 44. g4
{[%clk 0:00:12.9]} 44... h5 {[%clk 0:01:08.6]} 45. gxh5 {[%clk 0:00:11]} 45...
Bf5 {[%clk 0:01:04]} 46. hxg6 {[%clk 0:00:10.5]} 46... Rd2 {[%clk 0:01:05]} 47.
Rxd2 {[%clk 0:00:10.1]} 47... Bxd2 {[%clk 0:01:06.9]} 48. Kg2 {[%clk 0:00:08.2]}
48... b4 {[%clk 0:01:07.9]} 49. Ne7 {[%clk 0:00:06.7]} 49... Bc2 {[%clk
0:00:53.7]} 50. f5 {[%clk 0:00:07.3]} 50... Bh6 {[%clk 0:00:46.4]} 51. f6+
{[%clk 0:00:08.3]} 51... Kf8 {[%clk 0:00:46.5]} 52. g7+ {[%clk 0:00:07.4]} 52...
Bxg7 {[%clk 0:00:46.9]} 53. fxg7+ {[%clk 0:00:08.5]} 53... Kxg7 {[%clk
0:00:48.6]} 54. Bd5 {[%clk 0:00:03.4]} 54... b3 {[%clk 0:00:50.5]} 55. Bxb3
{[%clk 0:00:04.2]} 55... Bxb3 {[%clk 0:00:52]} 56. Nc6 {[%clk 0:00:04.5]} 56...
Kf7 {[%clk 0:00:53.9]} 57. Kf2 {[%clk 0:00:05.6]} 57... Ke6 {[%clk 0:00:54.7]}
58. Nd4+ {[%clk 0:00:06.5]} 58... Kxe5 {[%clk 0:00:55.9]} 59. Nxb3 {[%clk
0:00:07.9]} 59... Kd5 {[%clk 0:00:57.8]} 60. Ke2 {[%clk 0:00:09.3]} 60... Kc4
{[%clk 0:00:59.7]} 61. Na5+ {[%clk 0:00:10.2]} 61... Kb5 {[%clk 0:01:00.4]} 62.
Nb7 {[%clk 0:00:10.7]} 62... Kb4 {[%clk 0:01:01.7]} 63. Kd2 {[%clk 0:00:11.5]}
63... Kb5 {[%clk 0:01:01.4]} 64. Kc3 {[%clk 0:00:12.2]} 64... Kb6 {[%clk
0:01:03.3]} 65. Nd6 {[%clk 0:00:12.6]} 65... a5 {[%clk 0:01:04.4]} 66. Nc4+
{[%clk 0:00:13.8]} 66... Kb5 {[%clk 0:01:05.8]} 67. Nxa5 {[%clk 0:00:15.1]}
1/2-1/2

[Event "*** Titled Tuesday Blitz"]
[Site "Chess.com"]
[Date "2019.07.02"]
[Round "5"]
[White "vpantev"]
[Black "Warerman"]
[Result "0-1"]
[WhiteElo "2599"]
[BlackElo "2445"]
[TimeControl "180+2"]
[EndTime "14:08:49 PDT"]
[Termination "Warerman won by resignation"]

1. d4 {[%clk 0:03:00.4]} 1... Nf6 {[%clk 0:03:00.2]} 2. Bf4 {[%clk 0:03:01]}
2... e6 {[%clk 0:02:58.9]} 3. e3 {[%clk 0:03:02.2]} 3... d5 {[%clk 0:02:58.6]}
4. Nf3 {[%clk 0:03:02.9]} 4... Bd6 {[%clk 0:03:00]} 5. Bg3 {[%clk 0:03:02.5]}
5... O-O {[%clk 0:02:59.1]} 6. c4 {[%clk 0:03:02.9]} 6... Bb4+ {[%clk
0:02:31.9]} 7. Nc3 {[%clk 0:03:03.5]} 7... Ne4 {[%clk 0:02:32.9]} 8. Qb3 {[%clk
0:03:03.4]} 8... Bxc3+ {[%clk 0:02:31.5]} 9. bxc3 {[%clk 0:03:03.7]} 9... c6
{[%clk 0:02:30.3]} 10. Bd3 {[%clk 0:03:03.2]} 10... Nd7 {[%clk 0:02:28.3]} 11.
O-O {[%clk 0:03:01.1]} 11... Nxg3 {[%clk 0:02:26.3]} 12. hxg3 {[%clk 0:03:01.6]}
12... dxc4 {[%clk 0:02:26.4]} 13. Bxc4 {[%clk 0:03:02.4]} 13... b6 {[%clk
0:02:26.9]} 14. a4 {[%clk 0:02:58.9]} 14... Bb7 {[%clk 0:02:17.2]} 15. Rfd1
{[%clk 0:02:59.3]} 15... Qe7 {[%clk 0:02:16.2]} 16. a5 {[%clk 0:02:53.1]} 16...
b5 {[%clk 0:02:11]} 17. Bd3 {[%clk 0:02:45.7]} 17... a6 {[%clk 0:02:11.4]} 18.
c4 {[%clk 0:02:44.9]} 18... e5 {[%clk 0:01:42.6]} 19. Bf5 {[%clk 0:02:40.7]}
19... exd4 {[%clk 0:01:33.8]} 20. exd4 {[%clk 0:02:35.5]} 20... Nf6 {[%clk
0:01:25.6]} 21. Re1 {[%clk 0:02:32.7]} 21... Qc7 {[%clk 0:01:26.5]} 22. c5
{[%clk 0:02:30]} 22... Bc8 {[%clk 0:01:24.9]} 23. Bxc8 {[%clk 0:02:27]} 23...
Raxc8 {[%clk 0:01:24.5]} 24. Ne5 {[%clk 0:02:28]} 24... Rfe8 {[%clk 0:01:16.3]}
25. Re2 {[%clk 0:02:15.9]} 25... Nd5 {[%clk 0:01:16.1]} 26. Rae1 {[%clk
0:02:15.8]} 26... Qxa5 {[%clk 0:01:06]} 27. Nxc6 {[%clk 0:02:10.1]} 27... Qxe1+
{[%clk 0:01:05.7]} 28. Rxe1 {[%clk 0:02:10.9]} 28... Rxe1+ {[%clk 0:01:07.6]}
29. Kh2 {[%clk 0:02:11.6]} 29... Rxc6 {[%clk 0:01:09.5]} 30. g4 {[%clk 0:02:10]}
30... Nf6 {[%clk 0:00:57.2]} 31. g5 {[%clk 0:02:10.5]} 31... Ne4 {[%clk
0:00:57.1]} 32. Qd5 {[%clk 0:02:09.1]} 32... Rc8 {[%clk 0:00:52]} 33. Qd7 {[%clk
0:02:07.5]} 33... Rf8 {[%clk 0:00:47.2]} 34. Qe7 {[%clk 0:02:04.9]} 34... b4
{[%clk 0:00:40.5]} 35. c6 {[%clk 0:02:05.1]} 35... b3 {[%clk 0:00:41.3]} 36. c7
{[%clk 0:02:06.2]} 36... Rc1 {[%clk 0:00:41.3]} 37. Qb4 {[%clk 0:01:46.6]} 37...
Rxc7 {[%clk 0:00:39.6]} 38. Qxb3 {[%clk 0:01:47.8]} 38... Rd7 {[%clk 0:00:35.4]}
39. Qd3 {[%clk 0:01:42.8]} 39... Nxg5 {[%clk 0:00:29.6]} 40. Qxa6 {[%clk
0:01:43]} 40... Rfd8 {[%clk 0:00:29.6]} 41. Qb5 {[%clk 0:01:37]} 41... h6 {[%clk
0:00:30.5]} 42. f3 {[%clk 0:01:37.7]} 42... Rxd4 {[%clk 0:00:31.1]} 43. Qb7
{[%clk 0:01:37.3]} 43... R4d7 {[%clk 0:00:31.6]} 44. Qc6 {[%clk 0:01:37.4]}
44... g6 {[%clk 0:00:33.5]} 45. Qc1 {[%clk 0:01:36.9]} 45... Kh7 {[%clk
0:00:32.7]} 46. Qf4 {[%clk 0:01:36.8]} 46... Ne6 {[%clk 0:00:33.4]} 47. Qf6
{[%clk 0:01:37.3]} 47... Ng7 {[%clk 0:00:32]} 48. Qe5 {[%clk 0:01:36.9]} 48...
Nh5 {[%clk 0:00:31.9]} 49. Qe4 {[%clk 0:01:33.9]} 49... Rd6 {[%clk 0:00:32.2]}
50. Qc4 {[%clk 0:01:34.5]} 50... R8d7 {[%clk 0:00:33.1]} 51. Qb3 {[%clk
0:01:32]} 51... Nf6 {[%clk 0:00:35]} 52. Qc4 {[%clk 0:01:32.1]} 52... Kg7 {[%clk
0:00:36.9]} 53. Qc3 {[%clk 0:01:33]} 53... h5 {[%clk 0:00:38.8]} 54. Kg3 {[%clk
0:01:33.5]} 54... Rd5 {[%clk 0:00:39.8]} 55. Qb2 {[%clk 0:01:34]} 55... Rf5
{[%clk 0:00:40]} 56. Qc3 {[%clk 0:01:34.6]} 56... Kh7 {[%clk 0:00:40.6]} 57. Qb2
{[%clk 0:01:35.3]} 57... Rd3 {[%clk 0:00:40.7]} 58. Qa2 {[%clk 0:01:34.2]} 58...
Rdd5 {[%clk 0:00:38.3]} 59. Qa7 {[%clk 0:01:34.5]} 59... Kg7 {[%clk 0:00:38.5]}
60. Qa1 {[%clk 0:01:35.1]} 60... g5 {[%clk 0:00:38.4]} 61. Qc3 {[%clk
0:01:32.7]} 61... h4+ {[%clk 0:00:38.9]} 62. Kh3 {[%clk 0:01:33.9]} 62... Kh6
{[%clk 0:00:39.2]} 63. Qc8 {[%clk 0:01:33]} 63... Kg7 {[%clk 0:00:37.3]} 64. Qc3
{[%clk 0:01:33.5]} 64... Rd1 {[%clk 0:00:36]} 65. Kh2 {[%clk 0:01:34.2]} 65...
Rfd5 {[%clk 0:00:36.3]} 66. Qe3 {[%clk 0:01:34.5]} 66... R1d3 {[%clk 0:00:35.1]}
67. Qc1 {[%clk 0:01:34.8]} 67... Rd2 {[%clk 0:00:35.6]} 68. Qc8 {[%clk
0:01:34.4]} 68... Re2 {[%clk 0:00:34.6]} 69. f4 {[%clk 0:01:27.7]} 69... g4
{[%clk 0:00:29.6]} 70. f5 {[%clk 0:01:26.4]} 70... Rdd2 {[%clk 0:00:28.8]} 71.
Qc1 {[%clk 0:01:27.2]} 71... Rxg2+ {[%clk 0:00:28.6]} 72. Kh1 {[%clk 0:01:28.5]}
72... Rge2 {[%clk 0:00:25.2]} 73. Qf1 {[%clk 0:01:27.9]} 73... Ne4 {[%clk
0:00:23.5]} 74. Qa1+ {[%clk 0:01:28.1]} 74... Kh7 {[%clk 0:00:22.8]} 75. Kg1
{[%clk 0:01:27.3]} 75... h3 {[%clk 0:00:22.8]} 76. f6 {[%clk 0:01:27.5]} 76...
h2+ {[%clk 0:00:22.8]} 0-1

[Event "*** Titled Tuesday Blitz"]
[Site "Chess.com"]
[Date "2019.07.02"]
[Round "5"]
[White "warmoatmeal"]
[Black "Synctel"]
[Result "0-1"]
[WhiteElo "1798"]
[BlackElo "2004"]
[TimeControl "180+2"]
[EndTime "14:08:49 PDT"]
[Termination "Synctel won by resignation"]

1. d4 {[%clk 0:03:01.9]} 1... Nf6 {[%clk 0:02:52.9]} 2. Nf3 {[%clk 0:03:02.2]}
2... e6 {[%clk 0:02:51.1]} 3. Bf4 {[%clk 0:03:01.9]} 3... d5 {[%clk 0:02:50.5]}
4. e3 {[%clk 0:03:02.3]} 4... Bd6 {[%clk 0:02:51.6]} 5. Bg3 {[%clk 0:03:02.3]}
5... O-O {[%clk 0:02:51]} 6. c3 {[%clk 0:03:00.9]} 6... b6 {[%clk 0:02:51.4]} 7.
Nbd2 {[%clk 0:03:01.2]} 7... Ba6 {[%clk 0:02:46.7]} 8. Bxa6 {[%clk 0:02:59.1]}
8... Nxa6 {[%clk 0:02:47.8]} 9. Qe2 {[%clk 0:02:59.2]} 9... Nb8 {[%clk
0:02:48.2]} 10. e4 {[%clk 0:02:59.9]} 10... dxe4 {[%clk 0:02:44.6]} 11. Nxe4
{[%clk 0:03:01.8]} 11... Nxe4 {[%clk 0:02:45.6]} 12. Qxe4 {[%clk 0:03:02.2]}
12... Nd7 {[%clk 0:02:44]} 13. O-O {[%clk 0:02:56.4]} 13... Bxg3 {[%clk
0:02:31.4]} 14. hxg3 {[%clk 0:02:56.5]} 14... c5 {[%clk 0:02:32.1]} 15. Rad1
{[%clk 0:02:51.2]} 15... Qc7 {[%clk 0:02:20.1]} 16. dxc5 {[%clk 0:02:34.8]}
16... Nxc5 {[%clk 0:02:18.5]} 17. Qe5 {[%clk 0:02:30.7]} 17... Qxe5 {[%clk
0:01:42.4]} 18. Nxe5 {[%clk 0:02:32.6]} 18... f6 {[%clk 0:00:46.8]} 19. Nc6
{[%clk 0:02:30.8]} 19... Kf7 {[%clk 0:00:44.8]} 20. b4 {[%clk 0:02:30.5]} 20...
Rfc8 {[%clk 0:00:42.4]} 21. b5 {[%clk 0:02:16.1]} 21... a6 {[%clk 0:00:30.9]}
22. a4 {[%clk 0:02:07.2]} 22... Rc7 {[%clk 0:00:23.5]} 23. Ra1 {[%clk
0:01:26.5]} 23... e5 {[%clk 0:00:23.4]} 24. Rfd1 {[%clk 0:01:26.6]} 24... Ne4
{[%clk 0:00:20.4]} 25. c4 {[%clk 0:01:24.2]} 25... Nc5 {[%clk 0:00:15.8]} 26.
Rd5 {[%clk 0:01:19.7]} 26... axb5 {[%clk 0:00:15.3]} 27. Rxc5 {[%clk 0:01:12.8]}
27... bxc5 {[%clk 0:00:13.9]} 28. cxb5 {[%clk 0:01:13.7]} 28... Rb7 {[%clk
0:00:12.1]} 29. Kf1 {[%clk 0:01:06.5]} 29... Rxb5 {[%clk 0:00:12.6]} 30. Nd8+
{[%clk 0:00:28.2]} 30... Ke8 {[%clk 0:00:10.9]} 31. Ne6 {[%clk 0:00:28.8]} 31...
Kf7 {[%clk 0:00:09.5]} 32. Nc7 {[%clk 0:00:29.4]} 32... Rba5 {[%clk 0:00:08.3]}
33. Nxa8 {[%clk 0:00:29.9]} 33... Rxa8 {[%clk 0:00:10.2]} 34. Ke2 {[%clk
0:00:31.7]} 34... Ke6 {[%clk 0:00:11.7]} 35. Kd3 {[%clk 0:00:32.9]} 35... Kd5
{[%clk 0:00:13.2]} 36. Kc3 {[%clk 0:00:34.3]} 36... Ra5 {[%clk 0:00:12.1]} 37.
Rd1+ {[%clk 0:00:30.9]} 37... Kc6 {[%clk 0:00:13.1]} 38. Ra1 {[%clk 0:00:31.4]}
38... h6 {[%clk 0:00:11.3]} 39. Kc4 {[%clk 0:00:32]} 39... f5 {[%clk 0:00:12.7]}
40. f3 {[%clk 0:00:30.3]} 40... e4 {[%clk 0:00:10.7]} 41. fxe4 {[%clk
0:00:29.1]} 41... fxe4 {[%clk 0:00:12.6]} 42. Ra3 {[%clk 0:00:29.1]} 42... g5
{[%clk 0:00:11]} 43. g4 {[%clk 0:00:29.1]} 43... Kd6 {[%clk 0:00:09.2]} 44. g3
{[%clk 0:00:27.2]} 44... Ke5 {[%clk 0:00:10.5]} 45. Kc3 {[%clk 0:00:27.5]} 45...
Kd5 {[%clk 0:00:09.4]} 46. Ra1 {[%clk 0:00:26.9]} 46... e3 {[%clk 0:00:09.2]}
47. Kd3 {[%clk 0:00:27.2]} 47... c4+ {[%clk 0:00:10.3]} 48. Kxe3 {[%clk
0:00:27.9]} 48... Kc5 {[%clk 0:00:11.7]} 49. Kd2 {[%clk 0:00:11.4]} 49... Kb4
{[%clk 0:00:12.5]} 50. Rb1+ {[%clk 0:00:12.1]} 50... Kxa4 {[%clk 0:00:13.5]} 51.
Kc3 {[%clk 0:00:12.3]} 51... Re5 {[%clk 0:00:08.6]} 52. Rb4+ {[%clk 0:00:10.1]}
52... Ka5 {[%clk 0:00:08.3]} 53. Kd4 {[%clk 0:00:07.6]} 53... Kxb4 {[%clk
0:00:04.2]} 54. Kxe5 {[%clk 0:00:08]} 54... c3 {[%clk 0:00:05.8]} 55. Kf6 {[%clk
0:00:08.8]} 55... c2 {[%clk 0:00:07.4]} 56. Kg6 {[%clk 0:00:10.1]} 56... c1=Q
{[%clk 0:00:09.3]} 57. Kxh6 {[%clk 0:00:12]} 57... Qc5 {[%clk 0:00:09.6]} 58.
Kh5 {[%clk 0:00:12.6]} 58... Kc3 {[%clk 0:00:11.5]} 59. Kh6 {[%clk 0:00:13]}
59... Kd3 {[%clk 0:00:13.4]} 60. Kh5 {[%clk 0:00:14.9]} 60... Ke3 {[%clk
0:00:15.3]} 61. Kh6 {[%clk 0:00:15.6]} 61... Kf3 {[%clk 0:00:17.2]} 62. Kg6
{[%clk 0:00:16]} 62... Kxg3 {[%clk 0:00:18.2]} 0-1

[Event "*** Titled Tuesday Blitz"]
[Site "Chess.com"]
[Date "2019.07.02"]
[Round "5"]
[White "przemekpiotrowski"]
[Black "Sajkochess"]
[Result "1/2-1/2"]
[WhiteElo "2347"]
[BlackElo "2254"]
[TimeControl "180+2"]
[EndTime "14:08:50 PDT"]
[Termination "Game drawn by repetition"]

1. d4 {[%clk 0:03:01.9]} 1... d5 {[%clk 0:03:00.4]} 2. Nf3 {[%clk 0:03:02.4]}
2... Nf6 {[%clk 0:03:00.1]} 3. g3 {[%clk 0:03:03.3]} 3... Bf5 {[%clk 0:02:55.9]}
4. Bg2 {[%clk 0:03:04.3]} 4... Nbd7 {[%clk 0:02:55.6]} 5. O-O {[%clk 0:03:05.7]}
5... e6 {[%clk 0:02:56.1]} 6. c4 {[%clk 0:03:06]} 6... c6 {[%clk 0:02:54]} 7.
Nc3 {[%clk 0:03:06.4]} 7... Be7 {[%clk 0:02:53.9]} 8. Nh4 {[%clk 0:03:07.3]}
8... Bg6 {[%clk 0:02:53.4]} 9. Nxg6 {[%clk 0:03:07.6]} 9... hxg6 {[%clk
0:02:54.2]} 10. b3 {[%clk 0:03:09.5]} 10... Qb6 {[%clk 0:02:22.3]} 11. Bf4
{[%clk 0:02:57.3]} 11... Ng4 {[%clk 0:01:53.9]} 12. h3 {[%clk 0:02:55.6]} 12...
g5 {[%clk 0:01:54.2]} 13. c5 {[%clk 0:02:18]} 13... Qd8 {[%clk 0:01:42.5]} 14.
hxg4 {[%clk 0:02:18.6]} 14... gxf4 {[%clk 0:01:41.9]} 15. gxf4 {[%clk
0:02:20.5]} 15... Bf6 {[%clk 0:01:31.3]} 16. g5 {[%clk 0:02:16]} 16... Be7
{[%clk 0:01:27.9]} 17. e4 {[%clk 0:02:05.6]} 17... Qc7 {[%clk 0:01:22.8]} 18. e5
{[%clk 0:02:06.1]} 18... O-O-O {[%clk 0:01:23.4]} 19. b4 {[%clk 0:02:06]} 19...
f6 {[%clk 0:01:24.4]} 20. g6 {[%clk 0:01:56.7]} 20... fxe5 {[%clk 0:01:20.6]}
21. fxe5 {[%clk 0:01:58.6]} 21... Nxe5 {[%clk 0:01:17.6]} 22. dxe5 {[%clk
0:01:36.5]} 22... Qxe5 {[%clk 0:01:17.2]} 23. Re1 {[%clk 0:01:37.9]} 23... Qxc3
{[%clk 0:01:14.1]} 24. Qg4 {[%clk 0:01:39.4]} 24... Bf6 {[%clk 0:01:02.9]} 25.
Rac1 {[%clk 0:01:25.8]} 25... Qd4 {[%clk 0:01:00.6]} 26. Qxe6+ {[%clk
0:01:20.1]} 26... Kb8 {[%clk 0:01:00.2]} 27. b5 {[%clk 0:01:21.2]} 27... Bh4
{[%clk 0:00:53.6]} 28. Qe5+ {[%clk 0:01:04.7]} 28... Qxe5 {[%clk 0:00:54.3]} 29.
Rxe5 {[%clk 0:01:06.6]} 29... Rhf8 {[%clk 0:00:55.8]} 30. Rc2 {[%clk 0:01:03.7]}
30... Bf6 {[%clk 0:00:52.2]} 31. Rf5 {[%clk 0:00:59.5]} 31... Bd4 {[%clk
0:00:49.6]} 32. Rxf8 {[%clk 0:00:49.5]} 32... Rxf8 {[%clk 0:00:51.5]} 33. bxc6
{[%clk 0:00:50.7]} 33... bxc6 {[%clk 0:00:51.4]} 34. Kf1 {[%clk 0:00:49.5]}
34... Kc7 {[%clk 0:00:50.1]} 35. f3 {[%clk 0:00:47.1]} 35... Rf6 {[%clk
0:00:48.8]} 36. Bh3 {[%clk 0:00:33.6]} 36... Rxg6 {[%clk 0:00:46.9]} 37. f4
{[%clk 0:00:30.3]} 37... Rg1+ {[%clk 0:00:44.8]} 38. Ke2 {[%clk 0:00:30.7]}
38... Rh1 {[%clk 0:00:45.9]} 39. Kd3 {[%clk 0:00:23.6]} 39... Rxh3+ {[%clk
0:00:17.7]} 40. Kxd4 {[%clk 0:00:24]} 40... Rf3 {[%clk 0:00:17.1]} 41. Ke5
{[%clk 0:00:22.3]} 41... Re3+ {[%clk 0:00:18]} 42. Kf5 {[%clk 0:00:23.4]} 42...
g6+ {[%clk 0:00:18.3]} 43. Kxg6 {[%clk 0:00:23.2]} 43... d4 {[%clk 0:00:19.3]}
44. Rd2 {[%clk 0:00:22.7]} 44... d3 {[%clk 0:00:19.8]} 45. f5 {[%clk 0:00:24]}
45... Kd7 {[%clk 0:00:21.1]} 46. Kf6 {[%clk 0:00:24.7]} 46... Rh3 {[%clk
0:00:16.3]} 47. Ke5 {[%clk 0:00:24.5]} 47... Ke7 {[%clk 0:00:13.9]} 48. Rg2
{[%clk 0:00:23.6]} 48... Re3+ {[%clk 0:00:10.3]} 49. Kd4 {[%clk 0:00:16.7]}
49... Re2 {[%clk 0:00:10.2]} 50. Rg1 {[%clk 0:00:17.6]} 50... Kf6 {[%clk
0:00:05.4]} 51. Kxd3 {[%clk 0:00:17.3]} 51... Rxa2 {[%clk 0:00:06.2]} 52. Rf1
{[%clk 0:00:18.9]} 52... Ra4 {[%clk 0:00:05.3]} 53. Kc3 {[%clk 0:00:19.6]} 53...
a5 {[%clk 0:00:05.4]} 54. Kb3 {[%clk 0:00:19.9]} 54... Rb4+ {[%clk 0:00:06.6]}
55. Kc3 {[%clk 0:00:21.5]} 55... Rb5 {[%clk 0:00:07.9]} 56. Kc4 {[%clk
0:00:22.7]} 56... Rb4+ {[%clk 0:00:09.1]} 57. Kc3 {[%clk 0:00:24.3]} 57... Rb5
{[%clk 0:00:10.3]} 58. Kc4 {[%clk 0:00:25.5]} 58... Rb4+ {[%clk 0:00:11.4]} 59.
Kc3 {[%clk 0:00:26.8]} 1/2-1/2

[Event "*** Titled Tuesday Blitz"]
[Site "Chess.com"]
[Date "2019.07.02"]
[Round "5"]
[White "SmoothAsAHedgehog"]
[Black "SanchezKelvin"]
[Result "1/2-1/2"]
[WhiteElo "2592"]
[BlackElo "2399"]
[TimeControl "180+2"]
[EndTime "14:08:52 PDT"]
[Termination "Game drawn by agreement"]

1. d4 {[%clk 0:03:01.9]} 1... Nf6 {[%clk 0:03:00.6]} 2. c4 {[%clk 0:03:00.9]}
2... g6 {[%clk 0:03:02.5]} 3. Nc3 {[%clk 0:03:02]} 3... Bg7 {[%clk 0:03:04.4]}
4. e4 {[%clk 0:03:03.5]} 4... d6 {[%clk 0:03:05.9]} 5. Nf3 {[%clk 0:03:05]} 5...
O-O {[%clk 0:03:05.7]} 6. Be2 {[%clk 0:03:06.5]} 6... c5 {[%clk 0:03:04.8]} 7.
d5 {[%clk 0:03:05.9]} 7... Bg4 {[%clk 0:03:05.1]} 8. O-O {[%clk 0:03:06.3]} 8...
e6 {[%clk 0:03:04.8]} 9. Bf4 {[%clk 0:03:03.5]} 9... exd5 {[%clk 0:03:03.6]} 10.
exd5 {[%clk 0:03:00.4]} 10... Nh5 {[%clk 0:03:00.3]} 11. Bg5 {[%clk 0:03:00.9]}
11... Bf6 {[%clk 0:03:00]} 12. Be3 {[%clk 0:02:50]} 12... Nd7 {[%clk 0:03:00.1]}
13. h3 {[%clk 0:02:50.4]} 13... Bxf3 {[%clk 0:02:59.8]} 14. Bxf3 {[%clk
0:02:51.4]} 14... Ng7 {[%clk 0:03:01.1]} 15. g4 {[%clk 0:02:52.3]} 15... Be5
{[%clk 0:03:00.3]} 16. Bg2 {[%clk 0:02:48.8]} 16... f5 {[%clk 0:03:00.5]} 17. f4
{[%clk 0:02:41.4]} 17... Bxc3 {[%clk 0:02:53.5]} 18. bxc3 {[%clk 0:02:42.1]}
18... Qa5 {[%clk 0:02:55.4]} 19. Qc2 {[%clk 0:02:33.6]} 19... Nb6 {[%clk
0:02:53.3]} 20. Qd3 {[%clk 0:02:31.1]} 20... Qa4 {[%clk 0:02:51]} 21. Rfb1
{[%clk 0:02:19.3]} 21... Qxc4 {[%clk 0:02:42.4]} 22. Qxc4 {[%clk 0:02:09.9]}
22... Nxc4 {[%clk 0:02:41.8]} 23. Bc1 {[%clk 0:02:10.1]} 23... Rf7 {[%clk
0:02:17.5]} 24. Bf1 {[%clk 0:02:01]} 24... Nb6 {[%clk 0:02:14.6]} 25. c4 {[%clk
0:01:58.2]} 25... Re8 {[%clk 0:02:10.7]} 26. Bd3 {[%clk 0:01:39.7]} 26... Re1+
{[%clk 0:02:04.1]} 27. Kf2 {[%clk 0:01:40.3]} 27... Rfe7 {[%clk 0:01:47.2]} 28.
Bd2 {[%clk 0:01:40.8]} 28... Rxb1 {[%clk 0:01:47.3]} 29. Rxb1 {[%clk 0:01:42.7]}
29... Nc8 {[%clk 0:01:45.6]} 30. a4 {[%clk 0:01:39.6]} 30... b6 {[%clk
0:01:45.5]} 31. a5 {[%clk 0:01:38.7]} 31... Rb7 {[%clk 0:01:45.7]} 32. Bc3
{[%clk 0:01:35.2]} 32... fxg4 {[%clk 0:01:35.9]} 33. hxg4 {[%clk 0:01:35.4]}
33... Ne8 {[%clk 0:01:36.2]} 34. Kf3 {[%clk 0:01:19.1]} 34... Kf7 {[%clk
0:01:25.7]} 35. Rh1 {[%clk 0:01:16.3]} 35... Nf6 {[%clk 0:01:23.3]} 36. a6
{[%clk 0:00:36.3]} 36... Re7 {[%clk 0:01:21.9]} 37. Rh6 {[%clk 0:00:33.2]} 37...
b5 {[%clk 0:00:50.9]} 38. g5 {[%clk 0:00:22.7]} 38... Ng8 {[%clk 0:00:36.4]} 39.
Rxh7+ {[%clk 0:00:22.2]} 39... Kf8 {[%clk 0:00:37.7]} 40. Bxg6 {[%clk
0:00:17.7]} 40... bxc4 {[%clk 0:00:37.9]} 41. f5 {[%clk 0:00:12.6]} 41... Nb6
{[%clk 0:00:38.7]} 42. f6 {[%clk 0:00:09.8]} 42... Rxh7 {[%clk 0:00:39.3]} 43.
Bxh7 {[%clk 0:00:11.7]} 43... Nxd5 {[%clk 0:00:40.7]} 44. Be1 {[%clk 0:00:12.2]}
44... Ngxf6 {[%clk 0:00:39]} 45. gxf6 {[%clk 0:00:13.1]} 45... Kf7 {[%clk
0:00:40.4]} 46. Be4 {[%clk 0:00:12.5]} 46... Nxf6 {[%clk 0:00:39.6]} 47. Bc3
{[%clk 0:00:13.4]} 47... Nxe4 {[%clk 0:00:39.3]} 48. Kxe4 {[%clk 0:00:15.3]}
48... Ke6 {[%clk 0:00:40.3]} 49. Ba5 {[%clk 0:00:16.4]} 49... d5+ {[%clk
0:00:41.1]} 50. Ke3 {[%clk 0:00:17.7]} 50... d4+ {[%clk 0:00:36.8]} 51. Ke4
{[%clk 0:00:17.3]} 51... c3 {[%clk 0:00:38.1]} 52. Kd3 {[%clk 0:00:14.4]} 52...
Kd5 {[%clk 0:00:38.4]} 53. Bb6 {[%clk 0:00:15.8]} 53... c4+ {[%clk 0:00:37.7]}
54. Kc2 {[%clk 0:00:16.5]} 54... d3+ {[%clk 0:00:38.7]} 55. Kxc3 {[%clk
0:00:17.5]} 55... Kc6 {[%clk 0:00:40.2]} 56. Bxa7 {[%clk 0:00:17.9]} 56... Kb5
{[%clk 0:00:41.3]} 57. Be3 {[%clk 0:00:18.7]} 57... Kxa6 {[%clk 0:00:42.8]} 58.
Bd2 {[%clk 0:00:19]} 1/2-1/2